bitfinex-derivatives/quotes_ETHF0:USTF0_20251204
["timestamp","ask_amount","ask_price","bid_price","bid_amount"]
[1764855643136,3.33491501,3180.5,3180.4,1.78220885]
[1764855643337,3.33491501,3180.5,3180.4,1.83590885]
[1764855643541,3.27281501,3180.5,3180.4,1.83590885]
[1764855643842,3.21071501,3180.5,3180.4,1.83590885]
[1764855649250,0.59825,3181.5,3181.0,0.15716]
[1764855649550,1.6458,3180.6,3180.5,1.83289]
[1764855650143,1.64908429,3180.6,3180.5,0.15719]
[1764855650347,1.64908429,3180.6,3180.5,0.99739]
[1764855650550,1.64908429,3180.6,3180.5,1.83289]
[1764855650852,1.64908429,3180.6,3180.5,0.15719]
[1764855651056,1.64908429,3180.6,3180.5,0.99739]
[1764855651646,1.64908429,3180.6,3180.5,1.83289]
[1764855651841,0.83098429,3180.6,3180.5,1.83289]
[1764855652052,0.00328429,3180.6,3180.5,2.32329]
[1764855656351,0.77749026,3181.3,3180.5,3.4135859]
[1764855656561,1.6458,3181.3,3181.2,0.8402]
[1764855656852,1.6458,3181.3,3181.2,1.6757]
[1764855657546,1.64885486,3181.3,3181.2,1.6757]
[1764855660456,1.64885486,3181.3,3181.2,0.8402]
[1764855660653,1.64885486,3181.3,3180.5,0.4904]
[1764855660654,1.6458,3181.2,3180.6,0.15718]
[1764855660860,0.8277,3180.7,3180.6,3.28206433]
[1764855662058,2.1604,3181.0,3180.9,1.6757]
[1764855662261,0.83075486,3181.3,3181.2,1.6757]
[1764855662459,0.83075486,3181.3,3181.2,3.12488433]
[1764855662755,1.6458,3182.0,3181.9,1.6757]
[1764855662960,40.8,3182.4,3181.9,3.12488433]
[1764855663155,0.8277,3182.0,3181.9,1.6757]
[1764855663860,1.64845419,3182.0,3181.9,1.6757]
[1764855664157,0.00265419,3182.0,3181.9,3.28200433]
[1764855664459,1.69975419,3182.0,3181.9,1.83282]
[1764855664658,43.0117,3182.5,3182.4,0.8244]
[1764855664860,43.0117,3182.5,3182.0,0.70462]
[1764855665053,1.6971,3182.1,3182.0,2.34232]
[1764855665663,1.70103812,3182.1,3182.0,2.34232]
[1764855665854,0.83903812,3182.1,3182.0,2.34232]
[1764855666157,1.6971,3181.9,3181.8,0.00471408]
[1764855666360,1.6971,3181.9,3181.8,1.64241408]
[1764855666562,0.8351,3181.9,3181.8,1.64241408]
[1764855667062,1.6971,3181.9,3181.8,1.64241408]
[1764855667561,0.8351,3181.9,3181.8,1.64241408]
[1764855667964,1.6971,3181.9,3181.8,1.64241408]
[1764855668763,1.70103812,3182.1,3182.0,1.6377]
[1764855668956,0.83903812,3182.1,3182.0,2.1852]
[1764855669568,1.70103812,3182.1,3182.0,2.1852]
[1764855670362,0.00393812,3182.1,3182.0,2.34232]
[1764855670761,0.83903812,3182.1,3182.0,2.34232]
[1764855672157,0.00393812,3182.1,3182.0,2.34232]
[1764855672359,0.5146,3183.0,3182.0,2.34232]
[1764855672360,0.5146,3183.0,3182.3,1.7948]
[1764855672561,1.6971,3182.7,3182.6,1.79479]
[1764855672757,42.4971,3182.7,3182.6,1.79479]
[1764855672961,0.8351,3182.1,3182.0,2.1852]
[1764855673162,1.6971,3182.1,3182.0,0.98152]
[1764855673369,1.69972054,3182.1,3182.0,1.79482]
[1764855674174,0.00262054,3182.1,3182.0,2.34232]
[1764855675474,0.5146,3183.0,3182.3,0.1571]
[1764855675669,2.2117,3183.0,3182.9,1.6377]
[1764855675867,2.2117,3183.0,3182.9,0.8244]
[1764855676062,43.0117,3183.0,3182.9,0.8244]
[1764855676465,43.0139185,3183.0,3182.9,0.8268796]
[1764855676687,43.0139185,3183.0,3182.9,1.6401796]
[1764855677277,0.8373185,3183.0,3182.9,1.6401796]
[1764855677779,0.8373185,3183.0,3182.9,1.7972496]
[1764855678070,0.0022185,3183.0,3182.9,1.7972496]
[1764855679178,0.8373185,3183.0,3182.9,1.7972496]
[1764855679778,0.0022185,3183.0,3182.9,1.7972496]
[1764855679974,2.2462,3183.5,3183.4,1.6377]
[1764855680277,1.6971,3183.5,3183.4,1.79475]
[1764855681180,0.00248705,3183.5,3183.4,1.79475]
[1764855681678,1.69958705,3183.5,3183.4,1.79475]
[1764855681877,0.00248705,3183.5,3183.4,1.79475]
[1764855682475,0.83758705,3183.5,3183.4,1.79475]
[1764855682778,2.24868705,3183.5,3183.4,0.15705]
[1764855682982,1.6971,3183.1,3183.0,1.6377]
[1764855683280,0.8351,3183.1,3183.0,2.1852]
[1764855683478,2.24868705,3183.5,3183.4,1.6377]
[1764855683882,2.24868705,3183.5,3183.4,0.8244]
[1764855684183,2.24868705,3183.5,3183.4,1.6377]
[1764855684381,2.24868705,3183.5,3183.4,0.8244]
[1764855685279,0.00248705,3183.5,3183.4,1.79475]
[1764855686275,12.53,3185.1,3183.5,0.5475]
[1764855686481,12.53,3185.1,3183.9,0.15702]
[1764855686683,40.8,3184.4,3183.9,0.15702]
[1764855686885,1.6971,3184.0,3183.9,1.79472]
[1764855687181,2.2462,3184.0,3183.9,0.15702]
[1764855687387,2.24895082,3184.0,3183.9,0.15702]
[1764855687590,2.24895082,3184.0,3183.7,0.00471408]
[1764855687591,1.6971,3183.8,3183.7,0.00471408]
[1764855690087,1.6971,3183.8,3183.7,0.82911408]
[1764855690789,1.6971,3183.8,3183.7,0.00471408]
[1764855692592,1.6971,3183.8,3183.0,1.44737061]
[1764855692777,1.6971,3183.1,3183.0,2.27177061]
[1764855692982,1.6971,3183.1,3183.0,3.08507061]
[1764855693986,1.6971,3183.1,3182.9,0.1595496]
[1764855693987,2.4533,3183.0,3182.9,0.1595496]
[1764855694180,2.4533,3183.0,3182.9,3.49362021]
[1764855694382,1.913,3183.0,3182.9,3.49362021]
[1764855694884,2.4533,3183.0,3182.9,0.0024796]
[1764855697888,2.4533,3183.0,3182.9,0.9036796]
[1764855698093,2.4533,3183.0,3182.9,0.0024796]
[1764855702292,43.2533,3183.0,3182.9,0.0024796]
[1764855704393,1.913,3182.3,3182.2,0.15711]
[1764855705194,1.913,3182.3,3182.2,0.15985206]
[1764855706598,1.913,3182.3,3182.2,1.06105206]
[1764855707010,1.913,3182.3,3182.2,0.15985206]
[1764855708708,1.913,3182.3,3182.2,0.00274206]
[1764855709703,1.913,3182.3,3182.2,0.82424206]
[1764855711208,1.913,3182.3,3182.2,0.00274206]
[1764855720513,2.1055,3182.0,3181.9,0.00471408]
[1764855721319,0.8219,3182.0,3181.9,1.61321408]
[1764855721522,2.1347,3182.0,3181.9,0.0086684]
[1764855722413,2.1347,3182.0,3181.9,0.8301684]
[1764855723621,2.1347,3182.0,3181.9,1.6432684]
[1764855724210,2.1347,3182.0,3181.9,0.7880684]
[1764855724415,2.1347,3182.0,3181.9,0.0086684]
[1764855724613,1.6384,3181.4,3180.7,2.8169378]
[1764855724812,0.8541,3180.9,3180.8,1.6346]
[1764855725015,1.6384,3180.9,3180.8,1.6346]
[1764855725619,1.64112226,3180.9,3180.8,0.16016894]
[1764855725922,0.00272226,3180.9,3180.8,1.79476894]
[1764855726122,0.85682226,3180.9,3180.8,1.79476894]
[1764855726419,1.6384,3180.6,3180.5,0.00471408]
[1764855727017,42.4384,3180.6,3180.5,0.00471408]
[1764855727518,42.4384,3180.6,3180.5,0.00867923]
[1764855727718,42.4384,3180.6,3179.5,0.93664]
[1764855727719,1.6384,3179.6,3179.5,0.93664]
[1764855727917,1.6384,3179.6,3179.5,0.15724]
[1764855728218,1.2973,3180.0,3179.9,0.7794]
[1764855728416,2.0816,3180.0,3179.9,0.7794]
[1764855728615,2.0816,3180.0,3179.6,0.15723]
[1764855728616,1.6384,3179.7,3179.6,0.94134408]
[1764855728924,1.6384,3179.7,3179.6,0.94374964]
[1764855729121,1.6384,3179.7,3179.6,1.79894964]
[1764855730322,1.6384,3180.0,3179.9,0.7794]
[1764855730524,1.6384,3179.9,3179.8,0.15722]
[1764855731324,1.6384,3179.7,3179.6,0.00711964]
[1764855732419,1.6384,3179.7,3179.6,0.78651964]
[1764855732619,1.6384,3179.7,3179.6,1.64171964]
[1764855733927,0.4432,3180.0,3179.9,1.6346]
[1764855733928,2.0816,3180.0,3179.9,1.6346]
[1764855734122,0.7843,3180.1,3180.0,2.0912]
[1764855734323,1.6384,3180.1,3180.0,1.6346]
[1764855735522,1.6384,3180.1,3180.0,0.7794]
[1764855735731,2.0816,3180.0,3179.9,0.93662]
[1764855735927,2.0816,3180.0,3179.9,0.15722]
[1764855742433,2.0816,3180.0,3179.6,0.00711964]
[1764855742434,1.6384,3179.7,3179.6,0.00711964]
[1764855742831,1.6384,3179.7,3179.6,1.64171964]
[1764855744230,1.6384,3179.7,3179.6,1.79894964]
[1764855744437,2.0816,3180.0,3179.9,0.7794]
[1764855744640,1.6384,3179.7,3179.6,0.16434964]
[1764855746937,1.6384,3179.1,3179.0,1.79186]
[1764855747335,0.4432,3179.5,3179.2,0.15725]
[1764855747634,1.6384,3179.3,3179.2,1.79185]
[1764855748026,1.6384,3179.3,3179.2,1.79561767]
[1764855748437,1.6384,3179.3,3179.2,0.16101767]
[1764855749043,1.6384,3179.3,3179.2,0.94041767]
[1764855750037,1.6384,3179.3,3179.2,0.16101767]
[1764855751643,1.6384,3179.3,3179.2,0.94041767]
[1764855752244,1.6384,3179.3,3179.2,0.16101767]
[1764855752541,1.6384,3179.3,3179.2,0.94041767]
[1764855753036,1.6384,3179.3,3179.2,0.16101767]
[1764855753737,2.0514,3179.0,3178.9,0.00471408]
[1764855754135,42.8514,3179.0,3178.9,0.00471408]
[1764855754331,42.8514,3179.0,3178.9,0.79611408]
[1764855754946,42.8514,3179.0,3178.9,0.79927952]
[1764855755244,42.8514,3179.0,3178.9,0.00787952]
[1764855756241,43.62712652,3179.0,3178.9,0.00787952]
[1764855756447,42.8514,3179.0,3178.9,0.00787952]
[1764855758645,42.8514,3179.0,3178.9,0.79927952]
[1764855759150,42.8514,3179.0,3178.9,0.00787952]
[1764855759647,42.8514,3179.0,3178.8,0.15727]
[1764855759648,1.5454,3178.3,3178.2,1.7308]
[1764855760648,1.54785255,3178.3,3178.2,1.73312137]
[1764855761951,1.54785255,3178.3,3178.2,0.00232137]
[1764855762549,1.54785255,3178.3,3177.9,0.00316801]
[1764855762550,48.34785255,3178.3,3177.6,0.15733]
[1764855762754,0.7205,3177.7,3177.6,1.57953]
[1764855762959,1.909,3178.0,3177.9,1.4222]
[1764855763341,1.4583,3177.8,3176.9,0.15737]
[1764855763547,0.4507,3177.5,3177.0,2.03616]
[1764855763746,0.7205,3177.2,3177.1,1.57956]
[1764855765146,1.4583,3177.2,3177.1,1.57956]
[1764855765352,1.909,3177.5,3177.4,1.57954]
[1764855765552,0.7205,3177.5,3177.4,1.57954]
[1764855766348,1.4583,3177.5,3177.4,1.57954]
[1764855767054,1.46301408,3177.7,3177.6,1.57953]
[1764855769654,0.72521408,3177.7,3177.6,1.57953]
[1764855769848,1.46301408,3177.7,3177.6,1.57953]
[1764855770354,0.00471408,3177.7,3177.6,3.03140139]
[1764855770560,1.46075255,3178.3,3178.2,1.4222]
[1764855770759,1.46075255,3178.3,3178.2,0.7015]
[1764855771958,1.46075255,3178.3,3178.2,0.8588]
[1764855772349,1.46075255,3178.3,3178.2,1.5795]
[1764855772551,2.91262394,3178.3,3178.2,0.1573]
[1764855773560,1.46075255,3178.3,3178.2,0.8588]
[1764855773859,1.46075255,3178.3,3178.2,3.03137139]
[1764855776563,1.46075255,3178.3,3178.2,1.5795]
[1764855777064,1.46075255,3178.3,3178.2,0.1573]
[1764855777263,1.46075255,3178.3,3178.2,0.8588]
[1764855778663,1.46075255,3178.3,3178.2,0.1573]
[1764855779058,1.46075255,3178.3,3178.2,0.8588]
[1764855779660,1.46075255,3178.3,3178.2,1.5795]
[1764855780463,1.46075255,3178.3,3178.2,0.8588]
[1764855780765,1.46075255,3178.3,3178.2,0.1573]
[1764855782167,1.46075255,3178.3,3178.2,0.8588]
[1764855782369,1.46075255,3178.3,3178.2,0.1573]
[1764855789970,1.46075255,3178.3,3178.2,1.6564]
[1764855791665,1.45015255,3178.3,3177.9,0.00471408]
[1764855791869,4.04136922,3178.0,3177.9,0.00471408]
[1764855792179,1.4869,3177.1,3177.0,0.00331733]
[1764855793373,1.4869,3177.1,3177.0,1.65977733]
[1764855793872,1.4869,3177.1,3177.0,0.16067733]
[1764855795977,1.4869,3177.1,3176.0,2.51416922]
[1764855796183,1.4869,3176.6,3176.5,1.65649]
[1764855796378,1.4869,3176.6,3176.5,0.15739]
[1764855797072,1.4869,3176.6,3176.5,0.16114104]
[1764855798780,1.4869,3176.6,3176.5,0.92534104]
[1764855799082,1.4869,3176.6,3176.5,0.16114104]
[1764855799881,2.94036304,3176.6,3176.5,0.16114104]
[1764855800880,0.7597,3176.6,3176.5,0.16114104]
[1764855801186,1.4869,3176.6,3176.5,0.16114104]
[1764855801581,1.4869,3176.6,3176.5,3.11370408]
[1764855801887,1.49162173,3176.9,3176.8,0.7642]
[1764855802088,1.4869,3176.6,3176.5,0.00375104]
[1764855802586,42.2869,3176.6,3176.5,0.00375104]
[1764855804991,42.2869,3176.6,3176.5,1.66024104]
[1764855805492,1.4869,3176.6,3176.5,1.66024104]
[1764855805693,1.4869,3176.6,3176.5,0.92534104]
[1764855805891,1.7529,3176.0,3175.9,0.15742]
[1764855806989,1.75526328,3176.0,3175.9,0.1613281]
[1764855807383,1.4869,3175.4,3175.3,1.65654]
[1764855807582,1.4869,3175.4,3175.3,0.92164]
[1764855807781,1.4869,3175.4,3175.3,1.65654]
[1764855808385,1.4869,3175.4,3175.3,1.65923294]
[1764855808585,1.4869,3175.4,3175.3,0.92433294]
[1764855808991,1.4869,3175.4,3175.3,1.65923294]
[1764855809495,0.7597,3175.4,3175.3,3.11269598]
[1764855810092,1.4869,3175.9,3175.8,0.92162]
[1764855810397,1.4869,3175.9,3175.8,1.65652]
[1764855810591,0.7597,3175.9,3175.8,1.65652]
[1764855810787,0.76206328,3176.0,3175.9,1.65652]
[1764855810992,0.76206328,3176.0,3175.9,3.10998304]
[1764855811792,0.00236328,3176.0,3175.9,3.10998304]
[1764855812302,0.76206328,3176.0,3175.9,3.10998304]
[1764855812490,0.76206328,3176.0,3175.9,1.65652]
[1764855812889,0.00236328,3176.0,3175.9,1.65652]
[1764855814102,0.76206328,3176.0,3175.9,1.65652]
[1764855814504,0.00236328,3176.0,3175.9,1.65652]
[1764855818908,0.75106328,3176.0,3175.9,1.65652]
[1764855819408,0.00236328,3176.0,3175.9,1.65652]
[1764855823709,0.72426328,3176.0,3175.9,1.65652]
[1764855823906,0.00236328,3176.0,3175.9,1.65652]
[1764855825310,0.7219,3176.5,3176.4,1.60139]
[1764855825707,1.4273,3176.5,3176.4,1.60139]
[1764855826310,1.42951734,3176.5,3176.4,1.60139]
[1764855829409,0.72411734,3176.5,3176.4,1.60139]
[1764855829611,1.42951734,3176.5,3176.4,1.60139]
[1764855829814,0.00221734,3176.5,3176.4,1.60139]
[1764855830008,0.72411734,3176.5,3176.4,1.60139]
[1764855830607,1.42951734,3176.5,3176.4,1.60139]
[1764855830910,0.72411734,3176.5,3176.4,1.60139]
[1764855831805,0.00221734,3176.5,3176.4,1.60139]
[1764855832915,0.00472173,3176.9,3176.8,1.60137]
[1764855833801,0.00728843,3176.9,3176.8,1.60137]
[1764855834408,0.00728843,3176.9,3176.8,3.01770875]
[1764855836108,0.00728843,3176.9,3176.8,7.04691938]
[1764855836310,40.8,3177.8,3177.7,0.7218]
[1764855837318,40.80343964,3177.8,3177.7,0.7218]
[1764855837615,40.80343964,3177.8,3177.7,0.00234025]
[1764855838020,40.80343964,3177.8,3177.7,0.72414025]
[1764855838820,40.80343964,3177.8,3177.7,0.00234025]
[1764855839517,1.8483,3177.5,3177.4,0.00472173]
[1764855840322,1.8483,3177.0,3176.9,0.15737]
[1764855840522,1.8483,3177.0,3176.9,0.16000559]
[1764855841123,1.4273,3176.3,3176.2,0.1574]
[1764855841322,1.4273,3176.3,3176.2,0.8792]
[1764855842224,1.4273,3176.3,3176.2,0.88309812]
[1764855843218,0.7219,3176.3,3176.2,3.02163687]
[1764855843421,0.7219,3176.5,3176.4,1.444]
[1764855843624,1.4273,3176.5,3176.4,1.444]
[1764855844114,1.4833,3176.3,3176.2,1.61279812]
[1764855844320,1.4833,3175.6,3175.5,1.60894]
[1764855844620,0.7516,3175.6,3175.5,2.03304]
[1764855844928,1.4833,3175.6,3175.5,1.60894]
[1764855845316,1.4833,3175.6,3175.5,0.89529746]
[1764855846826,1.4833,3175.6,3175.5,1.61229746]
[1764855849430,1.48802173,3175.9,3175.8,1.4515]
[1764855849829,1.48802173,3175.9,3175.8,0.7345]
[1764855852236,1.4833,3175.8,3175.7,0.89193]
[1764855852441,1.4833,3175.8,3175.7,1.60893]
[1764855852826,1.4833,3175.8,3175.7,0.89193]
[1764855853028,1.4833,3175.8,3175.7,1.60893]
[1764855853235,0.7516,3175.8,3175.7,1.60893]
[1764855853642,1.4833,3175.8,3175.7,1.60893]
[1764855854146,0.7516,3175.8,3175.7,1.60893]
[1764855854839,1.4833,3175.8,3175.7,1.60893]
[1764855855035,1.4833,3175.8,3175.7,0.89193]
[1764855855437,1.4833,3175.8,3175.7,0.15743]
[1764855857740,1.4833,3175.6,3175.5,0.00335746]
[1764855858946,1.4833,3175.6,3175.5,0.73785746]
[1764855859141,0.7516,3175.6,3175.5,1.87895746]
[1764855859340,1.4833,3175.6,3175.5,1.87895746]
[1764855859642,1.4833,3175.6,3175.5,1.45485746]
[1764855860140,1.4833,3176.3,3176.2,1.4515]
[1764855860345,0.15733,3177.7,3176.3,0.1574]
[1764855860534,0.7516,3176.4,3176.3,1.6089]
[1764855860947,1.4833,3176.4,3176.3,1.6089]
[1764855861841,0.7516,3176.4,3176.3,1.6089]
[1764855863740,1.4833,3176.4,3176.3,0.1574]
[1764855864850,1.4833,3176.4,3176.3,0.8919]
[1764855865650,1.4833,3176.4,3176.3,0.1574]
[1764855867352,1.4833,3176.4,3176.3,0.8919]
[1764855867956,1.4833,3176.4,3176.3,1.6089]
[1764855870659,0.7516,3176.4,3176.3,1.6089]
[1764855873063,1.4833,3176.4,3176.3,0.1574]
[1764855873265,1.4833,3176.4,3176.3,0.8919]
[1764855873460,1.4833,3176.4,3176.3,0.1574]
[1764855873653,1.4833,3176.1,3176.0,0.00472173]
[1764855873968,1.4833,3176.1,3176.0,0.71712173]
[1764855874669,1.4833,3176.1,3175.2,2.8169378]
[1764855874670,1.4751,3174.6,3174.5,0.7124]
[1764855874962,1.4751,3174.3,3174.2,1.4686]
[1764855875152,0.7067,3174.3,3174.2,1.4686]
[1764855875357,1.4751,3174.3,3174.2,1.4686]
[1764855875766,1.47777849,3174.3,3174.2,0.00291223]
[1764855875964,1.47777849,3174.3,3174.2,1.47151223]
[1764855876158,0.70937849,3174.3,3174.2,1.47151223]
[1764855877463,1.47777849,3174.3,3174.2,1.47151223]
[1764855878059,0.70937849,3174.3,3174.2,1.47151223]
[1764855880959,1.47777849,3174.3,3174.2,1.47151223]
[1764855883170,0.70937849,3174.3,3174.2,1.47151223]
[1764855883469,1.41427849,3174.3,3174.2,0.71531223]
[1764855884269,1.41427849,3174.3,3174.2,1.41681223]
[1764855884459,0.70937849,3174.3,3174.2,1.41681223]
[1764855884660,1.41427849,3174.3,3174.2,1.41681223]
[1764855885070,0.70937849,3174.3,3174.2,1.41681223]
[1764855885473,1.41427849,3174.3,3174.2,1.41681223]
[1764855886567,1.41427849,3174.3,3174.2,0.00291223]
[1764855886780,1.41427849,3174.3,3174.2,1.44341223]
[1764855887674,1.41427849,3174.3,3174.2,0.74191223]
[1764855887868,1.41427849,3174.3,3174.2,1.44341223]
[1764855888673,1.41427849,3174.3,3174.2,0.00291223]
[1764855888875,1.41427849,3174.3,3174.1,0.15751]
[1764855889074,1.4802,3174.2,3174.1,0.15751]
[1764855889466,1.4802,3174.2,3174.1,0.89651]
[1764855889871,1.4802,3174.2,3174.1,1.60057579]
[1764855891477,1.4802,3174.2,3174.1,0.89907579]
[1764855892866,1.4802,3174.2,3174.1,1.60057579]
[1764855893266,0.00267849,3174.3,3174.2,1.4405]
[1764855893471,0.77797849,3174.3,3174.2,1.4405]
[1764855893675,0.77797849,3174.3,3174.2,1.598]
[1764855893876,0.00267849,3174.3,3174.2,1.598]
[1764855898270,0.00472173,3174.6,3174.5,2.03349]
[1764855898475,0.00472173,3174.6,3174.5,3.48858449]
[1764855898681,1.4802,3175.2,3175.1,1.4405]
[1764855898878,1.4802,3175.1,3175.0,0.89646]
[1764855899381,1.48415075,3175.1,3175.0,0.89646]
[1764855901279,1.4802,3174.8,3174.7,0.00472173]
[1764855901482,2.93529449,3174.8,3174.7,0.00472173]
[1764855902076,0.00395075,3175.1,3175.0,1.4405]
[1764855902077,1.48415075,3175.1,3175.0,1.4405]
[1764855902273,1.48415075,3175.1,3175.0,0.739]
[1764855902478,1.4802,3174.8,3174.7,1.44522173]
[1764855902670,0.7753,3174.8,3174.7,1.44522173]
[1764855903070,1.48415075,3175.1,3175.0,1.4405]
[1764855903277,0.00395075,3175.1,3175.0,1.876]
[1764855903582,0.00395075,3175.1,3175.0,3.48855449]
[1764855905483,0.00395075,3175.1,3175.0,4.94364898]
[1764855905782,0.00472173,3175.4,3175.3,3.07264449]
[1764855906082,42.25509449,3176.4,3175.6,0.15743]
[1764855906283,0.7396,3175.7,3175.6,1.61753]
[1764855906580,0.74274315,3175.7,3175.6,1.61753]
[1764855907381,0.00314315,3175.7,3175.6,1.61753]
[1764855908587,0.00314315,3175.7,3175.6,3.07262449]
[1764855908988,0.74274315,3175.7,3175.6,3.07262449]
[1764855909292,1.51754315,3175.7,3175.6,3.07262449]
[1764855909979,0.74274315,3175.7,3175.6,3.07262449]
[1764855910381,1.51754315,3175.7,3175.6,3.07262449]
[1764855912090,0.74274315,3175.7,3175.6,3.07262449]
[1764855912385,1.51754315,3175.7,3175.6,1.61753]
[1764855914086,1.51754315,3175.7,3175.6,0.90393]
[1764855914478,1.51754315,3175.7,3175.6,1.61753]
[1764855914686,0.00314315,3175.7,3175.6,1.61753]
[1764855914882,1.51754315,3175.7,3175.6,0.15743]
[1764855915083,1.5144,3175.2,3175.1,4.10696]
[1764855915990,1.5144,3175.2,3175.1,3.36046]
[1764855916593,42.3144,3175.2,3175.1,3.36046]
[1764855916989,42.3144,3175.2,3175.1,4.10696]
[1764855917189,1.5144,3175.2,3175.1,4.10696]
[1764855918691,42.3144,3175.2,3175.1,4.10696]
[1764855919097,1.5144,3175.2,3175.1,4.10696]
[1764855920000,1.5144,3175.2,3175.1,4.82056]
[1764855921796,0.00314315,3175.7,3175.2,0.15745]
[1764855922004,1.5144,3175.5,3175.4,1.4601]
[1764855922298,1.5144,3175.3,3175.2,1.61755]
[1764855923401,0.4565,3175.5,3175.2,1.61755]
[1764855923595,1.5144,3175.5,3175.4,1.4601]
[1764855924305,0.00314315,3175.7,3175.6,1.4601]
[1764855924510,0.00314315,3175.7,3175.6,3.07262449]
[1764855924708,0.74274315,3175.7,3175.6,1.61753]
[1764855924910,0.00314315,3175.7,3175.6,1.61753]
[1764855926715,0.74274315,3175.7,3175.6,1.61753]
[1764855926911,0.00314315,3175.7,3175.6,1.61753]
[1764855927111,1.51754315,3175.7,3175.6,0.15743]
[1764855927313,1.51754315,3175.7,3175.6,1.61753]
[1764855927617,0.00314315,3175.7,3175.6,1.61753]
[1764855930811,0.00472173,3176.0,3175.9,0.15742]
[1764855931117,1.51912173,3176.0,3175.9,1.61752]
[1764855931516,1.97562173,3176.0,3175.9,0.90392]
[1764855931720,1.97562173,3176.0,3175.9,1.61752]
[1764855932016,1.97969872,3176.0,3175.9,1.61752]
[1764855932319,1.97969872,3176.0,3175.9,0.15742]
[1764855932917,1.97969872,3176.0,3175.9,0.90392]
[1764855935318,1.97969872,3176.0,3175.9,0.15742]
[1764855937620,1.97969872,3176.0,3175.9,1.59842]
[1764855938020,1.97969872,3176.0,3175.9,0.88732]
[1764855938915,1.97969872,3176.0,3175.9,1.59842]
[1764855939930,0.74839872,3176.0,3175.9,1.59842]
[1764855940227,1.50959872,3176.0,3175.9,1.59842]
[1764855942227,0.74839872,3176.0,3175.9,1.59842]
[1764855942430,1.4854,3176.2,3176.1,1.63711]
[1764855943329,1.48879003,3176.2,3176.1,1.63711]
[1764855944323,1.48879003,3176.2,3176.1,0.15741]
[1764855946829,1.48879003,3176.2,3174.6,1.41768415]
[1764855946830,3.151,3175.4,3174.1,0.93741116]
[1764855947128,3.151,3175.4,3173.5,0.452]
[1764855947129,1.41768415,3174.2,3173.5,0.452]
[1764855947436,1.41768415,3173.7,3173.5,0.452]
[1764855947634,1.41768415,3173.9,3173.6,0.7568]
[1764855947818,1.23503444,3173.8,3173.5,0.452]
[1764855948130,2.2956138,3173.7,3173.6,0.00276625]
[1764855948328,0.00377831,3173.9,3173.6,0.00276625]
[1764855948927,0.88055623,3173.9,3173.6,0.00276625]
[1764855949133,0.00377831,3173.9,3173.8,1.4797]
[1764855952623,1.66808716,3175.5,3175.0,0.452]
[1764855952827,1.009671,3175.4,3175.3,0.7568]
[1764855953030,1.009671,3175.7,3175.3,0.7229]
[1764855953225,1.009671,3175.7,3174.5,0.452]
[1764855953226,48.65455986,3175.6,3174.5,0.452]
[1764855953428,2.3338719,3175.1,3173.6,0.16029625]
[1764855953628,0.00472173,3174.9,3174.2,0.00472173]
[1764855953830,1.009671,3174.8,3174.2,0.00472173]
[1764855954031,1.009671,3174.7,3174.2,0.00472173]
[1764855954234,1.009671,3174.6,3174.2,0.00472173]
[1764855954428,1.009671,3174.5,3174.2,0.00472173]
[1764855954626,1.009671,3174.4,3174.2,0.00472173]
[1764855954830,1.009671,3174.3,3174.2,0.00472173]
[1764855955335,7.009671,3174.3,3174.2,0.00472173]
[1764855955534,7.009671,3174.3,3173.6,0.00276625]
[1764855955535,47.809671,3174.3,3173.6,0.00276625]
[1764855955833,1.009671,3174.2,3173.6,0.00276625]
[1764855956034,1.009671,3174.1,3173.6,0.00276625]
[1764855956234,1.009671,3174.0,3173.6,0.00276625]
[1764855956428,40.8,3174.3,3173.6,0.00276625]
[1764855956429,1.009671,3173.9,3173.6,0.00276625]
[1764855956630,1.009671,3173.8,3173.6,0.00276625]
[1764855956825,40.8,3174.3,3173.6,0.00276625]
[1764855957030,1.00737602,3174.2,3173.6,0.00276625]
[1764855958533,1.00737602,3174.2,3174.0,0.452]
[1764855961136,1.00737602,3174.2,3174.1,4.7232]
[1764855961442,1.00737602,3174.2,3174.0,0.452]
[1764855961839,3.34124792,3174.2,3173.6,0.00276625]
[1764855962038,1.00737602,3174.1,3173.6,0.00276625]
[1764855962239,1.00737602,3174.1,3174.0,0.452]
[1764855963038,1.00737602,3174.2,3174.0,0.452]
[1764855963237,1.00737602,3174.1,3174.0,0.452]
[1764855963543,1.00737602,3174.2,3174.0,0.452]
[1764855963746,1.00737602,3174.1,3174.0,0.452]
[1764855964139,1.00737602,3174.2,3174.0,0.452]
[1764855964337,1.00737602,3174.1,3174.0,0.452]
[1764855964532,1.00737602,3174.2,3174.0,0.452]
[1764855965048,1.00737602,3174.2,3174.1,1.4307]
[1764855965547,1.00737602,3174.7,3174.1,1.4307]
[1764855965743,41.80737602,3174.6,3174.5,0.7955]
[1764855967739,41.80737602,3174.6,3174.5,1.5422]
[1764855967935,41.80737602,3174.6,3174.5,2.25]
[1764855968335,41.80737602,3174.6,3174.5,6.9732]
[1764855969044,1.00737602,3174.6,3174.5,6.9732]
[1764855969343,0.00472173,3174.9,3174.8,0.7467]
[1764855969545,41.81211608,3174.9,3174.5,5.5187]
[1764855969746,1.00739435,3174.8,3174.7,0.7467]
[1764855970142,1.00739435,3174.8,3174.7,1.4545]
[1764855970444,1.00739435,3174.8,3174.0,0.452]
[1764855970445,7.00739435,3174.8,3174.0,0.452]
[1764855970742,2.3338719,3174.1,3172.5,0.7955]
[1764855970946,2.3338719,3173.2,3172.5,0.7955]
[1764855971142,13.91411508,3173.1,3172.0,0.7955]
[1764855971346,1.67761239,3172.1,3171.5,0.7955]
[1764855971548,1.67761239,3172.1,3171.8,3.6787992]
[1764855971549,10.74139435,3172.0,3171.8,3.6787992]
[1764855971846,1.00739435,3171.9,3171.8,3.68155485]
[1764855972045,1.00739435,3171.9,3171.8,0.00275565]
[1764855972245,1.00739435,3171.9,3171.8,3.68155485]
[1764855972246,2.68500674,3171.9,3171.8,3.68155485]
[1764855972435,17.56587864,3171.9,3171.8,0.00275565]
[1764855972635,3.34126625,3171.9,3171.8,0.00275565]
[1764855972835,15.88826625,3171.9,3171.8,0.00275565]
[1764855973049,0.15763,3171.7,3171.6,2.173e-05]